fUSD/lending_fUSD_20260524
["ID","MTS","AMOUNT","RATE_DAILY","PERIOD"]
[422873923,1779556253000,-714.903553,0.00027397,2]
[422873921,1779556253000,-714.903553,0.00027397,2]
[422873924,1779556253000,-714.903553,0.00027397,2]
[422873927,1779556253000,-714.903553,0.00027397,2]
[422873925,1779556253000,-714.903553,0.00027397,2]
[422873926,1779556253000,-714.903553,0.00027397,2]
[422873866,1779556253000,-1000.0,0.00027397,2]
[422873916,1779556253000,-714.903553,0.00027397,2]
[422873898,1779556253000,-151.0,0.00027397,2]
[422873913,1779556253000,-714.903553,0.00027397,2]
[422873899,1779556253000,-151.0,0.00027397,2]
[422873863,1779556253000,-1000.0,0.00027397,2]
[422873909,1779556253000,-151.070447,0.00027397,2]
[422873872,1779556253000,-1000.0,0.00027397,2]
[422873875,1779556253000,-1000.0,0.00027397,2]
[422873874,1779556253000,-1000.0,0.00027397,2]
[422873877,1779556253000,-1000.0,0.00027397,2]
[422873876,1779556253000,-1000.0,0.00027397,2]
[422873879,1779556253000,-1000.0,0.00027397,2]
[422873880,1779556253000,-1000.0,0.00027397,2]
[422873883,1779556253000,-1000.0,0.00027397,2]
[422873885,1779556253000,-1891.0,0.00027397,2]
[422873881,1779556253000,-1000.0,0.00027397,2]
[422873882,1779556253000,-1000.0,0.00027397,2]
[422873884,1779556253000,-1000.0,0.00027397,2]
[422873886,1779556253000,-1500.0,0.00027397,2]
[422873893,1779556253000,-151.0,0.00027397,2]
[422873878,1779556253000,-1000.0,0.00027397,2]
[422873895,1779556253000,-151.0,0.00027397,2]
[422873896,1779556253000,-151.0,0.00027397,2]
[422873890,1779556253000,-1000.0,0.00027397,20]
[422873894,1779556253000,-151.0,0.00027397,2]
[422873892,1779556253000,-151.0,0.00027397,2]
[422873891,1779556253000,-151.0,0.00027397,2]
[422873897,1779556253000,-151.0,0.00027397,2]
[422873887,1779556253000,-1003.01,0.00027397,2]
[422873888,1779556253000,-343.12,0.00027397,31]
[422873889,1779556253000,-512.12,0.00027397,2]
[422873968,1779556254000,-729.391673,0.00027397,2]
[422873961,1779556254000,-729.391673,0.00027397,2]
[422873963,1779556254000,-729.391673,0.00027397,2]
[422873969,1779556254000,-729.391673,0.00027397,2]
[422873958,1779556254000,-729.391673,0.00027397,2]
[422873967,1779556254000,-729.391673,0.00027397,2]
[422873962,1779556254000,-729.391673,0.00027397,2]
[422873959,1779556254000,-729.391673,0.00027397,2]
[422873965,1779556254000,-729.391673,0.00027397,2]
[422873960,1779556254000,-729.391673,0.00027397,2]
[422873981,1779556254000,-151.0,0.00027397,2]
[422873966,1779556254000,-729.391673,0.00027397,2]
[422873972,1779556254000,-729.391673,0.00027397,2]
[422873994,1779556254000,-1040.376546,0.00027397,2]
[422873970,1779556254000,-729.391673,0.00027397,2]
[422873980,1779556254000,-151.0,0.00027397,2]
[422873973,1779556254000,-729.391673,0.00027397,2]
[422873977,1779556254000,-151.0,0.00027397,2]
[422873975,1779556254000,-729.391673,0.00027397,2]
[422873976,1779556254000,-729.391678,0.00027397,2]
[422873982,1779556254000,-151.0,0.00027397,2]
[422873974,1779556254000,-729.391673,0.00027397,2]
[422873978,1779556254000,-248.353747,0.00027397,2]
[422873979,1779556254000,-151.0,0.00027397,2]
[422873984,1779556254000,-151.0,0.00027397,2]
[422873964,1779556254000,-729.391673,0.00027397,2]
[422873971,1779556254000,-729.391673,0.00027397,2]
[422873957,1779556254000,-729.391673,0.00027397,2]
[422873928,1779556254000,-714.903553,0.00027397,2]
[422873951,1779556254000,-179.523232,0.00027397,2]
[422873983,1779556254000,-1040.376546,0.00027397,2]
[422873930,1779556254000,-714.903545,0.00027397,2]
[422873931,1779556254000,-151.0,0.00027397,2]
[422873929,1779556254000,-714.903553,0.00027397,2]
[422873933,1779556254000,-151.0,0.00027397,2]
[422873944,1779556254000,-179.523232,0.00027397,2]
[422873943,1779556254000,-179.523232,0.00027397,2]
[422873932,1779556254000,-151.0,0.00027397,2]
[422873936,1779556254000,-179.523232,0.00027397,2]
[422873942,1779556254000,-179.523232,0.00027397,2]
[422873939,1779556254000,-179.523232,0.00027397,2]
[422873938,1779556254000,-179.523232,0.00027397,2]
[422873952,1779556254000,-179.523232,0.00027397,2]
[422873934,1779556254000,-161.00001,0.00027397,2]
[422873941,1779556254000,-179.523232,0.00027397,2]
[422873937,1779556254000,-179.523232,0.00027397,2]
[422873946,1779556254000,-179.523232,0.00027397,2]
[422873945,1779556254000,-179.523232,0.00027397,2]
[422873956,1779556254000,-527.33,0.00027397,2]
[422873950,1779556254000,-179.523232,0.00027397,2]
[422873948,1779556254000,-179.523232,0.00027397,2]
[422873954,1779556254000,-179.523232,0.00027397,2]
[422873955,1779556254000,-179.523233,0.00027397,2]
[422873949,1779556254000,-179.523232,0.00027397,2]
[422873947,1779556254000,-179.523232,0.00027397,2]
[422873953,1779556254000,-179.523232,0.00027397,2]
[422873940,1779556254000,-179.523232,0.00027397,2]
[422873985,1779556254000,-1040.376546,0.00027397,2]
[422873935,1779556254000,-1019.62,0.00027397,2]
[422873987,1779556254000,-1040.376546,0.00027397,2]
[422874019,1779556254000,-1450.670935,0.00027397,2]
[422874017,1779556254000,-1450.670935,0.00027397,2]
[422874022,1779556254000,-1450.670935,0.00027397,2]
[422874021,1779556254000,-1450.670935,0.00027397,2]
[422874023,1779556254000,-1450.670935,0.00027397,2]
[422874025,1779556254000,-1450.670942,0.00027397,2]
[422874027,1779556254000,-1080.414501,0.00027397,2]
[422874037,1779556254000,-1080.414501,0.00027397,2]
[422874038,1779556254000,-1080.414501,0.00027397,2]
[422874026,1779556254000,-300.0,0.00027397,2]
[422874029,1779556254000,-1080.414501,0.00027397,2]
[422874030,1779556254000,-1080.414501,0.00027397,2]
[422874020,1779556254000,-1450.670935,0.00027397,2]
[422874028,1779556254000,-1080.414501,0.00027397,2]
[422874036,1779556254000,-1080.414501,0.00027397,2]
[422874031,1779556254000,-1080.414501,0.00027397,2]
[422874033,1779556254000,-1080.414501,0.00027397,2]
[422874035,1779556254000,-1080.414501,0.00027397,2]
[422874034,1779556254000,-1080.414501,0.00027397,2]
[422874040,1779556254000,-1080.414501,0.00027397,2]
[422874041,1779556254000,-1080.414501,0.00027397,2]
[422874039,1779556254000,-1080.414501,0.00027397,2]
[422874042,1779556254000,-1080.414501,0.00027397,2]
[422874044,1779556254000,-1080.414501,0.00027397,2]
[422874045,1779556254000,-1080.414501,0.00027397,2]
[422873986,1779556254000,-151.0,0.00027397,2]
[422874032,1779556254000,-1080.414501,0.00027397,2]
[422874018,1779556254000,-1450.670935,0.00027397,2]
[422874043,1779556254000,-1080.414501,0.00027397,2]
[422874024,1779556254000,-1450.670935,0.00027397,2]
[422874016,1779556254000,-1450.670935,0.00027397,2]
[422873988,1779556254000,-163.448953,0.00027397,2]
[422873989,1779556254000,-1040.376546,0.00027397,2]
[422873993,1779556254000,-1040.376546,0.00027397,2]
[422873992,1779556254000,-1040.376546,0.00027397,2]
[422873990,1779556254000,-1040.376546,0.00027397,2]
[422873996,1779556254000,-1040.376546,0.00027397,2]
[422873995,1779556254000,-1040.376546,0.00027397,2]
[422873997,1779556254000,-1040.376546,0.00027397,2]
[422873998,1779556254000,-1040.376546,0.00027397,2]
[422874000,1779556254000,-1040.376546,0.00027397,2]
[422873999,1779556254000,-1040.376546,0.00027397,2]
[422874012,1779556254000,-1450.670935,0.00027397,2]
[422873991,1779556254000,-1040.376546,0.00027397,2]
[422874002,1779556254000,-1040.376546,0.00027397,2]
[422874005,1779556254000,-1040.37654597,0.00027397,2]
[422874013,1779556254000,-1450.670935,0.00027397,2]
[422874014,1779556254000,-1450.670935,0.00027397,2]
[422874009,1779556254000,-1450.670935,0.00027397,2]
[422874011,1779556254000,-1450.670935,0.00027397,2]
[422874008,1779556254000,-1450.670935,0.00027397,2]
[422874015,1779556254000,-1450.670935,0.00027397,2]
[422874010,1779556254000,-1450.670935,0.00027397,2]
[422874007,1779556254000,-1450.670935,0.00027397,2]
[422874001,1779556254000,-1040.376546,0.00027397,2]
[422874003,1779556254000,-1040.376546,0.00027397,2]
[422874006,1779556254000,-1450.670935,0.00027397,2]
[422874004,1779556254000,-1040.376546,0.00027397,2]
[422874068,1779556255000,-500.0,0.000274,2]
[422874078,1779556255000,-5000.0,0.00027508,2]
[422874087,1779556255000,-1068.68397391,0.0002752,5]
[422874077,1779556255000,-7298.0,0.000275,7]
[422874089,1779556255000,-1039.60647652,0.0002752,5]
[422874088,1779556255000,-1046.23029855,0.0002752,5]
[422874082,1779556255000,-5000.0,0.00027508,2]
[422874076,1779556255000,-1000.0,0.000275,2]
[422874079,1779556255000,-5000.0,0.00027508,2]
[422874074,1779556255000,-204.23653165,0.000275,2]
[422874090,1779556255000,-1080.02124416,0.0002752,5]
[422874081,1779556255000,-5000.0,0.00027508,2]
[422874085,1779556255000,-1148.74993063,0.0002752,5]
[422874080,1779556255000,-5000.0,0.00027508,2]
[422874086,1779556255000,-1095.35464172,0.0002752,5]
[422874084,1779556255000,-200.0,0.00027517,2]
[422874091,1779556255000,-1112.83001227,0.0002752,5]
[422874092,1779556255000,-1046.45026102,0.0002752,5]
[422874093,1779556255000,-1041.30589914,0.0002752,5]
[422874097,1779556255000,-1096.43879573,0.0002752,5]
[422874069,1779556255000,-895.88,0.000274,2]
[422874103,1779556255000,-1086.79237842,0.0002752,5]
[422874083,1779556255000,-5004.96369061,0.00027513,2]
[422874071,1779556255000,-1520.46,0.000274,7]
[422874053,1779556255000,-500.0,0.000274,2]
[422874063,1779556255000,-500.0,0.000274,2]
[422874102,1779556255000,-1031.61260979,0.0002752,5]
[422874046,1779556255000,-1080.414493,0.00027397,2]
[422874047,1779556255000,-37787.66,0.00027397,10]
[422874049,1779556255000,-500.0,0.000274,2]
[422874048,1779556255000,-500.0,0.000274,2]
[422874051,1779556255000,-500.0,0.000274,2]
[422874061,1779556255000,-500.0,0.000274,2]
[422874062,1779556255000,-500.0,0.000274,2]
[422874052,1779556255000,-500.0,0.000274,2]
[422874057,1779556255000,-500.0,0.000274,2]
[422874055,1779556255000,-500.0,0.000274,2]
[422874065,1779556255000,-500.0,0.000274,2]
[422874054,1779556255000,-500.0,0.000274,2]
[422874056,1779556255000,-500.0,0.000274,2]
[422874060,1779556255000,-500.0,0.000274,2]
[422874058,1779556255000,-500.0,0.000274,2]
[422874059,1779556255000,-500.0,0.000274,2]
[422874073,1779556255000,-10000.0,0.00027463,7]
[422874064,1779556255000,-500.0,0.000274,2]
[422874075,1779556255000,-151.0,0.000275,2]
[422874070,1779556255000,-1606.2,0.000274,7]
[422874067,1779556255000,-500.0,0.000274,2]
[422874066,1779556255000,-500.0,0.000274,2]
[422874072,1779556255000,-504.89,0.0002744,30]
[422874050,1779556255000,-500.0,0.000274,2]
[422874100,1779556255000,-1018.98498244,0.0002752,5]
[422874098,1779556255000,-1097.96490122,0.0002752,5]
[422874095,1779556255000,-1047.14543183,0.0002752,5]
[422874128,1779556255000,-524.03,0.0002755,2]
[422874130,1779556255000,-9430.06,0.0002755,2]
[422874127,1779556255000,-5876.41,0.0002755,2]
[422874132,1779556255000,-5661.11,0.0002755,2]
[422874131,1779556255000,-5661.11,0.0002755,7]
[422874134,1779556255000,-5661.11,0.0002755,2]
[422874137,1779556255000,-5040.63,0.0002755,7]
[422874133,1779556255000,-5661.11,0.0002755,7]
[422874135,1779556255000,-5661.11,0.0002755,7]
[422874136,1779556255000,-5661.11,0.0002755,2]
[422874138,1779556255000,-5040.63,0.0002755,2]
[422874140,1779556255000,-524.03,0.0002758,7]
[422874141,1779556255000,-528.28,0.0002758,7]
[422874139,1779556255000,-528.28,0.0002755,2]
[422874142,1779556255000,-2110.0,0.00027582,2]
[422874145,1779556255000,-528.28,0.00027611,30]
[422874143,1779556255000,-1606.2,0.000276,7]
[422874144,1779556255000,-524.03,0.00027611,30]
[422874146,1779556255000,-524.03,0.00027641,2]
[422874148,1779556255000,-5876.41,0.0002766,7]
[422874147,1779556255000,-528.28,0.00027641,2]
[422874150,1779556255000,-5661.11,0.0002766,7]
[422874101,1779556255000,-1089.07458445,0.0002752,5]
[422874129,1779556255000,-9430.06,0.0002755,7]
[422874126,1779556255000,-5876.41,0.0002755,7]
[422874149,1779556255000,-9430.06,0.0002766,7]
[422874124,1779556255000,-5876.41,0.0002755,7]
[422874125,1779556255000,-5876.41,0.0002755,2]
[422874094,1779556255000,-1050.16217863,0.0002752,5]
[422874099,1779556255000,-1068.57748329,0.0002752,5]
[422874105,1779556255000,-1091.88138927,0.0002752,5]
[422874110,1779556255000,-1119.47156225,0.0002752,5]
[422874106,1779556255000,-1100.3119521,0.0002752,5]
[422874107,1779556255000,-1146.68360327,0.0002752,5]
[422874108,1779556255000,-1139.87851159,0.0002752,5]
[422874104,1779556255000,-1142.65885177,0.0002752,5]
[422874112,1779556255000,-9430.06,0.0002755,2]
[422874109,1779556255000,-1084.83530407,0.0002752,5]
[422874096,1779556255000,-1020.02288028,0.0002752,5]
[422874113,1779556255000,-9430.06,0.0002755,7]
[422874115,1779556255000,-9430.06,0.0002755,7]
[422874114,1779556255000,-9430.06,0.0002755,2]
[422874119,1779556255000,-5040.63,0.0002755,7]
[422874116,1779556255000,-5040.63,0.0002755,2]
[422874121,1779556255000,-5876.41,0.0002755,7]
[422874122,1779556255000,-5876.41,0.0002755,2]
[422874117,1779556255000,-5040.63,0.0002755,7]
[422874118,1779556255000,-5040.63,0.0002755,2]
[422874120,1779556255000,-9430.05,0.0002755,7]
[422874123,1779556255000,-5040.64,0.0002755,2]
[422874111,1779556255000,-150.0,0.00027521,2]
[422874186,1779556256000,-9430.06,0.00027972,7]
[422874188,1779556256000,-5040.63,0.00027972,7]
[422874183,1779556256000,-169.0,0.0002796,5]
[422874177,1779556256000,-524.03,0.00027885,30]
[422874182,1779556256000,-162.0,0.0002796,5]
[422874176,1779556256000,-934.0,0.00027856,4]
[422874175,1779556256000,-528.28,0.00027855,7]
[422874179,1779556256000,-524.03,0.00027916,2]
[422874184,1779556256000,-164.0,0.0002796,5]
[422874189,1779556256000,-524.03,0.00027977,30]
[422874192,1779556256000,-151.0,0.00028,2]
[422874187,1779556256000,-5661.11,0.00027972,7]
[422874185,1779556256000,-5876.41,0.00027972,7]
[422874190,1779556256000,-51616.86791435,0.00028,2]
[422874191,1779556256000,-160.0,0.00028,2]
[422874195,1779556256000,-200.0,0.00028,20]
[422874194,1779556256000,-1606.2,0.00028,7]
[422874205,1779556256000,-324.0,0.00028,2]
[422874206,1779556256000,-524.03,0.00028007,2]
[422874196,1779556256000,-2178.34105403,0.00028,2]
[422874178,1779556256000,-250.0,0.000279,2]
[422874193,1779556256000,-200.0,0.00028,20]
[422874174,1779556256000,-524.03,0.00027855,7]
[422874161,1779556256000,-524.03,0.00027794,30]
[422874204,1779556256000,-10128.10463149,0.00028,2]
[422874151,1779556256000,-5040.63,0.0002766,7]
[422874152,1779556256000,-524.03,0.00027672,7]
[422874153,1779556256000,-528.28,0.00027672,7]
[422874154,1779556256000,-524.03,0.00027702,30]
[422874156,1779556256000,-524.03,0.00027733,2]
[422874155,1779556256000,-528.28,0.00027702,30]
[422874158,1779556256000,-524.03,0.00027763,7]
[422874159,1779556256000,-528.28,0.00027763,7]
[422874157,1779556256000,-528.28,0.00027733,2]
[422874160,1779556256000,-1660.79,0.00027775,2]
[422874180,1779556256000,-3548.03,0.00027934,7]
[422874162,1779556256000,-528.28,0.00027794,30]
[422874164,1779556256000,-1520.46,0.000278,7]
[422874165,1779556256000,-163.21234366,0.00027808,7]
[422874168,1779556256000,-9430.06,0.00027816,2]
[422874166,1779556256000,-236.98186902,0.00027808,7]
[422874169,1779556256000,-5661.11,0.00027816,2]
[422874167,1779556256000,-5876.41,0.00027816,2]
[422874171,1779556256000,-524.03,0.00027824,2]
[422874181,1779556256000,-524.03,0.00027946,7]
[422874170,1779556256000,-5040.63,0.00027816,2]
[422874172,1779556256000,-528.28,0.00027824,2]
[422874163,1779556256000,-1606.2,0.000278,7]
[422874203,1779556256000,-215.31523495,0.00028,10]
[422874173,1779556256000,-1500.0,0.00027852,15]
[422874202,1779556256000,-600.0,0.00028,2]
[422874225,1779556256000,-1520.46,0.000281,7]
[422874227,1779556256000,-5000.0,0.00028105,2]
[422874224,1779556256000,-524.03,0.00028099,2]
[422874229,1779556256000,-5000.0,0.00028105,2]
[422874233,1779556256000,-524.13,0.0002813,7]
[422874235,1779556256000,-496.14,0.00028138,120]
[422874236,1779556256000,-1285.3,0.00028192,7]
[422874244,1779556256000,-204.73138549,0.000284,7]
[422874238,1779556256000,-517.26,0.00028192,7]
[422874234,1779556256000,-5661.13,0.0002813,2]
[422874230,1779556256000,-5000.0,0.00028105,2]
[422874243,1779556256000,-203.17940626,0.00028397,7]
[422874237,1779556256000,-1119.78,0.00028192,7]
[422874239,1779556256000,-200.0,0.000282,7]
[422874240,1779556256000,-204.27508933,0.000282,7]
[422874246,1779556256000,-934.0,0.00028411,5]
[422874248,1779556256000,-167.16,0.00028493,2]
[422874245,1779556256000,-1520.46,0.000284,7]
[422874249,1779556256000,-24525.0,0.000285,30]
[422874247,1779556256000,-1200.0,0.00028426,60]
[422874250,1779556256000,-225.0,0.000285,2]
[422874198,1779556256000,-11620.62,0.00028,14]
[422874242,1779556256000,-200.0,0.00028363,2]
[422874226,1779556256000,-6720.69831686,0.00028105,2]
[422874241,1779556256000,-3145.9,0.00028267,2]
[422874223,1779556256000,-5000.0,0.00028084,2]
[422874220,1779556256000,-150.0,0.00028082,2]
[422874201,1779556256000,-215.31523495,0.00028,30]
[422874199,1779556256000,-2646.5691712,0.00028,3]
[422874197,1779556256000,-1000.0,0.00028,2]
[422874200,1779556256000,-150.0,0.00028,2]
[422874209,1779556256000,-200.0,0.00028065,2]
[422874207,1779556256000,-200.0,0.00028025,2]
[422874210,1779556256000,-524.03,0.00028068,30]
[422874214,1779556256000,-198.09379095,0.00028081,2]
[422874208,1779556256000,-524.03,0.00028038,7]
[422874213,1779556256000,-150.0,0.0002808,30]
[422874211,1779556256000,-200.0,0.0002808,2]
[422874219,1779556256000,-2161.36,0.00028082,2]
[422874218,1779556256000,-150.0,0.00028082,2]
[422874212,1779556256000,-200.0,0.0002808,2]
[422874215,1779556256000,-150.0,0.00028082,2]
[422874217,1779556256000,-150.0,0.00028082,2]
[422874216,1779556256000,-150.0,0.00028082,2]
[422874221,1779556256000,-150.0,0.00028082,2]
[422874231,1779556256000,-535.53,0.0002813,7]
[422874232,1779556256000,-5876.43,0.0002813,2]
[422874228,1779556256000,-5000.0,0.00028105,2]
[422874222,1779556256000,-200.0,0.00028082,2]
[422874287,1779556257000,-200.0,0.00028646,2]
[422874285,1779556257000,-190.82012524,0.00028619,7]
[422874288,1779556257000,-1520.46,0.000287,7]
[422874291,1779556257000,-218.5855456,0.00028747,7]
[422874286,1779556257000,-171.09097698,0.00028626,7]
[422874276,1779556257000,-160.14698582,0.00028616,7]
[422874283,1779556257000,-169.05843674,0.00028619,7]
[422874278,1779556257000,-215.22278234,0.00028619,7]
[422874279,1779556257000,-164.72257566,0.00028619,7]
[422874289,1779556257000,-202.79412137,0.00028736,7]
[422874284,1779556257000,-196.04966534,0.00028619,7]
[422874290,1779556257000,-7186.14,0.00028745,2]
[422874298,1779556257000,-900.0,0.000289,10]
[422874301,1779556257000,-151.97246287,0.00028971,2]
[422874292,1779556257000,-150.0,0.00028767,2]
[422874302,1779556257000,-2974.44493619,0.0002899,10]
[422874304,1779556257000,-18226.07223455,0.00029,2]
[422874303,1779556257000,-227.0,0.00028999,120]
[422874293,1779556257000,-1002.0,0.000288,120]
[422874299,1779556257000,-200.0,0.00028933,2]
[422874296,1779556257000,-150.0,0.00028897,2]
[422874294,1779556257000,-500.0,0.00028806,14]
[422874295,1779556257000,-200.0,0.00028821,2]
[422874308,1779556257000,-276.87,0.00029,2]
[422874274,1779556257000,-153.06828482,0.00028616,7]
[422874300,1779556257000,-934.0,0.00028965,6]
[422874277,1779556257000,-192.63120331,0.00028616,7]
[422874253,1779556257000,-174.34275012,0.00028568,5]
[422874271,1779556257000,-161.19621613,0.00028616,7]
[422874256,1779556257000,-253.32317433,0.00028568,7]
[422874255,1779556257000,-159.26845892,0.00028568,7]
[422874305,1779556257000,-510.03650428,0.00029,2]
[422874252,1779556257000,-163.14596671,0.00028568,7]
[422874251,1779556257000,-500.0,0.00028507,15]
[422874254,1779556257000,-175.37168332,0.00028568,7]
[422874257,1779556257000,-308.82498325,0.00028568,7]
[422874265,1779556257000,-306.43,0.00028571,30]
[422874258,1779556257000,-174.77282736,0.00028568,7]
[422874259,1779556257000,-311.52615123,0.00028568,7]
[422874263,1779556257000,-187.29427337,0.00028568,7]
[422874260,1779556257000,-161.17312284,0.00028568,7]
[422874268,1779556257000,-200.0,0.00028613,2]
[422874264,1779556257000,-170.10638334,0.00028569,7]
[422874261,1779556257000,-201.7325522,0.00028568,7]
[422874262,1779556257000,-156.2218778,0.00028568,7]
[422874267,1779556257000,-208.7160732,0.00028612,7]
[422874266,1779556257000,-176.77579004,0.00028609,2]
[422874269,1779556257000,-158.44658964,0.00028616,7]
[422874270,1779556257000,-174.52141954,0.00028616,7]
[422874280,1779556257000,-191.71893386,0.00028619,7]
[422874272,1779556257000,-154.42555548,0.00028616,7]
[422874282,1779556257000,-160.28940767,0.00028619,7]
[422874273,1779556257000,-195.32837876,0.00028616,7]
[422874281,1779556257000,-155.70738037,0.00028619,7]
[422874275,1779556257000,-178.10357157,0.00028616,7]
[422874307,1779556257000,-500.0,0.00029,120]
[422874297,1779556257000,-250.0,0.000289,2]
[422874317,1779556257000,-155.03,0.00029,2]
[422874341,1779556257000,-162.56,0.00029,2]
[422874337,1779556257000,-185.0,0.00029,2]
[422874339,1779556257000,-475.77072069,0.00029,2]
[422874343,1779556257000,-2381.45,0.00029,2]
[422874342,1779556257000,-156.56,0.00029,2]
[422874344,1779556257000,-3572.17,0.00029,2]
[422874345,1779556257000,-3572.0,0.00029,2]
[422874347,1779556257000,-550.43199364,0.00029,2]
[422874346,1779556257000,-1934.64,0.00029,2]
[422874348,1779556257000,-963.0,0.00029,2]
[422874360,1779556257000,-5000.0,0.00029,2]
[422874350,1779556257000,-553.0,0.00029,2]
[422874340,1779556257000,-210.0,0.00029,2]
[422874361,1779556257000,-710.72086998,0.00029,120]
[422874354,1779556257000,-160.74990875,0.00029,2]
[422874351,1779556257000,-368.53787333,0.00029,2]
[422874353,1779556257000,-4596.37588041,0.00029,2]
[422874357,1779556257000,-767.39,0.00029,2]
[422874355,1779556257000,-11620.62,0.00029,14]
[422874358,1779556257000,-10339.90807077,0.00029,2]
[422874356,1779556257000,-488.0,0.00029,2]
[422874359,1779556257000,-5000.0,0.00029,2]
[422874363,1779556257000,-2273.9358932,0.00029,2]
[422874362,1779556257000,-1837.0,0.00029,7]
[422874364,1779556257000,-742.85811109,0.00029,2]
[422874316,1779556257000,-1215.0,0.00029,2]
[422874352,1779556257000,-506.7,0.00029,2]
[422874332,1779556257000,-9459.7,0.00029,2]
[422874349,1779556257000,-257.44,0.00029,2]
[422874336,1779556257000,-165.0,0.00029,30]
[422874306,1779556257000,-76502.14337533,0.00029,2]
[422874338,1779556257000,-410.0,0.00029,2]
[422874309,1779556257000,-154.87,0.00029,2]
[422874315,1779556257000,-650.9053367,0.00029,2]
[422874313,1779556257000,-10000.0,0.00029,2]
[422874311,1779556257000,-500.0,0.00029,2]
[422874312,1779556257000,-500.0,0.00029,2]
[422874314,1779556257000,-1374.63,0.00029,2]
[422874319,1779556257000,-151.0,0.00029,2]
[422874330,1779556257000,-154.86,0.00029,2]
[422874318,1779556257000,-155.03,0.00029,2]
[422874329,1779556257000,-155.03,0.00029,2]
[422874320,1779556257000,-2021.01539221,0.00029,2]
[422874310,1779556257000,-154.87,0.00029,2]
[422874325,1779556257000,-4608.49,0.00029,2]
[422874335,1779556257000,-2500.0,0.00029,30]
[422874334,1779556257000,-155.03,0.00029,2]
[422874331,1779556257000,-1520.46,0.00029,7]
[422874333,1779556257000,-400.0,0.00029,2]
[422874328,1779556257000,-586.0,0.00029,2]
[422874321,1779556257000,-210.48407735,0.00029,2]
[422874327,1779556257000,-500.0,0.00029,2]
[422874323,1779556257000,-5175.26,0.00029,2]
[422874326,1779556257000,-1000.0,0.00029,2]
[422874324,1779556257000,-5175.26,0.00029,2]
[422874322,1779556257000,-154.86,0.00029,2]
[422874401,1779556258000,-6060.0,0.00029383,2]
[422874408,1779556258000,-1702.36312769,0.000295,40]
[422874409,1779556258000,-3390.66462837,0.000295,40]
[422874407,1779556258000,-159.42097768,0.000295,2]
[422874406,1779556258000,-151.0,0.00029461,3]
[422874405,1779556258000,-1488.96,0.000294,2]
[422874402,1779556258000,-1520.46,0.000294,7]
[422874403,1779556258000,-3114.4,0.000294,2]
[422874412,1779556258000,-6117.93780766,0.000295,40]
[422874398,1779556258000,-1271.0,0.00029383,2]
[422874413,1779556258000,-6767.26762971,0.000295,40]
[422874410,1779556258000,-5078.96612904,0.000295,40]
[422874404,1779556258000,-1325.57,0.000294,2]
[422874411,1779556258000,-5094.12047924,0.000295,40]
[422874422,1779556258000,-1500.0,0.000295,2]
[422874417,1779556258000,-150.58862261,0.000295,40]
[422874419,1779556258000,-150.70675404,0.000295,40]
[422874420,1779556258000,-150.82518796,0.000295,40]
[422874423,1779556258000,-934.0,0.0002952,6]
[422874418,1779556258000,-150.70675404,0.000295,40]
[422874421,1779556258000,-150.82518796,0.000295,40]
[422874425,1779556258000,-150.0,0.00029614,2]
[422874424,1779556258000,-500.0,0.00029522,60]
[422874416,1779556258000,-150.58862261,0.000295,40]
[422874426,1779556258000,-150.0,0.0002964,2]